bitfinex/quotes_ETHUSD_20250518
["timestamp","ask_amount","ask_price","bid_price","bid_amount"]
[1747597324633,4.1146934,2430.4,2429.9,5.69778597]
[1747597324634,4.11458893,2430.4,2429.9,5.69778597]
[1747597324882,4.11268764,2431.5,2430.1,2.1324]
[1747597325163,0.34314995,2431.4,2430.4,1.5824]
[1747597325331,4.11346686,2431.1,2430.5,17.777]
[1747597325544,4.11302595,2431.3,2430.6,25.64295847]
[1747597325873,4.11404122,2430.7,2430.6,0.13195847]
[1747597326073,4.11363815,2431.0,2430.7,12.772]
[1747597326239,0.34314995,2431.3,2430.7,12.772]
[1747597326571,4.11345097,2431.1,2430.8,12.86795847]
[1747597326760,4.11345097,2431.1,2430.9,1.5824]
[1747597326960,4.11370274,2430.9,2430.8,0.13195847]
[1747597327148,4.11370274,2430.9,2430.8,12.90395847]
[1747597327473,4.11370274,2430.9,2430.8,12.772]
[1747597328569,4.11421048,2430.6,2430.5,17.777]
[1747597328774,4.11421048,2430.6,2430.5,30.546]
[1747597329070,5.12911048,2430.6,2430.5,30.546]
[1747597329293,13.12911048,2430.6,2430.5,30.546]
[1747597329635,4.11421048,2430.6,2430.5,30.546]
[1747597330773,4.11421048,2430.6,2430.5,30.545]
[1747597331074,12.11421048,2430.6,2430.5,30.545]
[1747597331647,12.11421048,2430.6,2430.5,17.777]
[1747597331877,12.11421048,2430.6,2430.5,30.545]
[1747597332261,15.11421048,2430.6,2430.5,30.545]
[1747597332464,15.11421048,2430.6,2430.5,29.16734272]
[1747597333651,15.11421048,2430.6,2430.5,16.39934272]
[1747597333854,4.11590385,2429.6,2429.5,17.771]
[1747597334060,4.11590385,2429.6,2429.5,30.539]
[1747597334458,12.30552379,2429.6,2429.5,17.771]
[1747597334861,4.1180804,2428.4,2428.2,17.771]
[1747597335065,4.11793773,2428.4,2428.3,12.768]
[1747597335377,4.11810731,2428.3,2428.2,19.5481]
[1747597335577,4.11810731,2428.3,2427.1,17.771]
[1747597335578,4.11997363,2427.2,2427.1,17.771]
[1747597335781,4.11983182,2427.3,2427.1,30.539]
[1747597335978,4.11861614,2428.0,2427.1,30.539]
[1747597336178,1.0149,2428.3,2427.3,1.6065]
[1747597336482,4.11888282,2427.9,2427.3,5.72625996]
[1747597336687,4.11891579,2427.9,2427.3,5.72623268]
[1747597336864,8.0,2428.6,2427.3,1.6065]
[1747597337183,4.11776816,2428.5,2427.3,1.6065]
[1747597337486,4.11951096,2427.5,2427.4,12.77]
[1747597337690,4.1192987,2427.6,2427.4,12.77]
[1747597337988,4.11867223,2428.0,2427.4,29.59258217]
[1747597338492,4.11890262,2427.9,2427.4,25.473]
[1747597338798,4.11903024,2427.8,2427.4,3.34424462]
[1747597338963,4.11940591,2427.6,2427.5,12.77]
[1747597339165,4.11759861,2428.6,2427.5,12.77]
[1747597339384,4.11859278,2428.1,2427.6,0.0411817]
[1747597339691,4.11891184,2427.9,2427.6,1.69307062]
[1747597339864,1.0149,2429.1,2427.7,2.0563]
[1747597340060,1.0149,2429.1,2428.0,0.55]
[1747597340061,4.11768999,2428.6,2428.0,0.55]
[1747597340387,4.33963506,2429.2,2428.1,43.248]
[1747597340548,4.11827691,2428.2,2428.1,17.777]
[1747597340755,4.11827691,2428.2,2428.1,30.549]
[1747597343202,4.11748919,2428.7,2428.1,30.549]
[1747597343203,4.11805808,2428.4,2428.1,33.6039]
[1747597343406,4.1181985,2428.3,2428.1,33.6039]
[1747597343699,4.11692054,2429.0,2428.1,33.6039]
[1747597343700,4.11800264,2428.4,2428.1,33.6039]
[1747597344087,4.11784352,2428.5,2428.1,33.6039]
[1747597344287,4.11692054,2429.0,2428.1,33.6039]
[1747597344492,4.11794378,2428.4,2428.1,33.6039]
[1747597344700,4.11675106,2429.1,2428.1,33.6039]
[1747597344701,4.11812645,2428.3,2428.1,33.6039]
[1747597344868,4.11809401,2428.4,2428.1,33.6039]
[1747597345069,4.11821888,2428.3,2428.1,33.6039]
[1747597345264,4.11821218,2428.3,2428.1,17.777]
[1747597345602,4.59223021,2429.2,2428.3,1.6258]
[1747597345793,4.11775127,2428.6,2428.3,1.6258]
[1747597346105,4.11793773,2428.4,2428.3,1.6258]
[1747597346673,4.11793773,2428.4,2428.2,12.695]
[1747597346674,4.11810731,2428.3,2428.2,12.695]
[1747597346867,4.11752677,2428.7,2428.1,17.777]
[1747597347170,4.11752677,2428.7,2428.2,12.695]
[1747597347171,4.11810731,2428.3,2428.2,12.695]
[1747597347700,4.11743489,2428.7,2428.2,15.90478]
[1747597347902,8.0,2429.1,2428.2,12.695]
[1747597348105,4.11692054,2429.0,2428.1,23.527]
[1747597348307,4.11827691,2428.2,2428.1,36.206]
[1747597348514,1.0149,2429.3,2428.2,12.695]
[1747597348718,4.11791901,2428.5,2428.2,12.695]
[1747597349012,4.11797205,2428.4,2428.2,16.78272253]
[1747597349212,4.11786293,2428.5,2428.2,16.78272253]
[1747597349415,4.11810731,2428.3,2428.1,23.527]
[1747597349620,4.11827691,2428.2,2428.1,23.527]
[1747597349802,4.11827691,2428.2,2428.1,36.222]
[1747597351217,12.11827691,2428.2,2428.1,30.472]
[1747597352526,13.13317691,2428.2,2428.1,17.777]
[1747597352720,4.11827691,2428.2,2428.1,17.777]
[1747597353483,4.11827691,2428.2,2428.1,30.472]
[1747597356321,4.11823759,2428.3,2428.1,30.472]
[1747597356507,4.11804092,2428.4,2428.1,33.5192]
[1747597357019,4.11810731,2428.3,2428.2,12.696]
[1747597358195,5.13131807,2429.3,2428.2,12.696]
[1747597358396,4.11790311,2428.5,2428.2,12.696]
[1747597358585,4.11766495,2428.6,2428.2,12.696]
[1747597358791,4.11802285,2428.4,2428.2,16.15515969]
[1747597358993,4.11670118,2429.2,2428.3,1.6093]
[1747597359188,16.76570118,2429.2,2428.3,1.6093]
[1747597359392,4.11793773,2428.4,2428.3,1.6093]
[1747597360500,4.1179662,2428.4,2428.3,12.696]
[1747597360700,4.11787302,2428.5,2428.3,12.696]
[1747597360901,4.11793773,2428.4,2428.3,12.696]
[1747597361305,4.11785322,2428.5,2428.3,12.696]
[1747597361622,4.11793773,2428.4,2428.3,12.696]
[1747597362595,4.11810882,2428.3,2428.1,17.777]
[1747597362809,4.11827691,2428.2,2428.1,30.473]
[1747597363630,4.11827691,2428.2,2428.1,17.777]
[1747597364399,4.34332761,2428.2,2428.1,17.777]
[1747597364797,12.34332761,2428.2,2428.1,17.777]
[1747597366740,4.72733461,2428.2,2428.1,17.777]
[1747597367550,4.50228391,2428.2,2428.1,17.777]
[1747597368199,4.11827691,2428.2,2428.1,17.777]
[1747597369432,4.11827691,2428.2,2428.1,30.474]
[1747597371105,4.34304264,2428.4,2428.1,35.0924]
[1747597371328,4.34304264,2428.4,2428.1,35.22615854]
[1747597371633,0.384007,2428.5,2428.1,39.34457456]
[1747597371852,4.11761495,2428.6,2428.1,35.22615854]
[1747597372000,4.11761495,2428.6,2428.2,3.52261585]
[1747597372442,4.11761495,2428.6,2428.3,0.13375854]
[1747597372749,1.01856892,2429.0,2428.9,1.5214]
[1747597373050,8.85835197,2430.5,2429.0,0.55]
[1747597373051,4.11478266,2430.3,2429.0,0.55]
[1747597373355,4.11613924,2429.5,2429.1,17.781]
[1747597373640,4.11613924,2429.5,2429.1,21.86872253]
[1747597373641,4.11643426,2429.3,2429.1,21.86872253]
[1747597373842,4.11658159,2429.2,2429.1,21.86872253]
[1747597374016,4.11658159,2429.2,2429.1,17.781]
[1747597374331,4.11658159,2429.2,2429.1,30.387]
[1747597375540,4.11658159,2429.2,2429.1,17.781]
[1747597375834,4.11658159,2429.2,2429.1,30.385]
[1747597376137,4.11608051,2429.5,2429.1,30.385]
[1747597376338,4.11658159,2429.2,2429.1,30.385]
[1747597377215,4.11658159,2429.2,2429.1,17.781]
[1747597377542,4.11658159,2429.2,2429.1,30.385]
[1747597377914,4.11586323,2429.7,2429.1,30.385]
[1747597378132,4.11642448,2429.3,2429.1,30.385]
[1747597378351,4.11631283,2429.4,2429.1,32.23674155]
[1747597378559,4.1157458,2429.7,2429.2,1.565]
[1747597378764,4.11606219,2429.6,2429.2,1.565]
[1747597379065,4.11610152,2429.5,2429.2,1.565]
[1747597379202,4.1157458,2429.7,2429.2,1.565]
[1747597379203,0.22444024,2430.1,2429.2,1.565]
[1747597379550,4.11641213,2429.3,2429.2,1.565]
[1747597379751,4.11641213,2429.3,2429.2,14.168]
[1747597379908,4.11626884,2429.4,2429.2,14.168]
[1747597379909,4.11626981,2429.4,2429.2,14.168]
[1747597380109,4.11641213,2429.3,2429.2,14.168]
[1747597380654,4.11612394,2429.5,2429.2,15.42654766]
[1747597380844,1.0149,2430.2,2429.2,15.42654766]
[1747597381141,4.11506399,2430.1,2429.6,4.11582193]
[1747597381323,2.00749355,2430.7,2429.8,0.55]
[1747597381670,4.11440536,2430.5,2430.0,4.11512499]
[1747597381809,4.11440536,2430.5,2430.1,19.45182676]
[1747597382025,4.11427188,2430.6,2430.1,19.45182676]
[1747597382227,4.11427188,2430.6,2430.1,23.56687564]
[1747597382561,6.12160769,2430.7,2430.2,1.5466]
[1747597382858,6.12160769,2430.7,2430.2,5.66148415]
[1747597383069,6.12156269,2430.7,2430.2,4.46944809]
[1747597383270,2.00749355,2430.7,2430.5,4.11436877]
[1747597383472,2.00749355,2430.7,2430.6,12.602]
[1747597383665,2.00749355,2430.7,2430.6,18.26281048]
[1747597383958,4.11302595,2431.3,2430.7,1.5466]
[1747597384128,5.41626944,2431.4,2430.7,1.5466]
[1747597384327,5.41626944,2431.4,2430.8,1.5466]
[1747597384328,4.11316816,2431.3,2430.8,1.5466]
[1747597384529,4.11353778,2431.0,2430.8,1.5466]
[1747597384739,4.11302595,2431.3,2430.9,12.599]
[1747597384949,4.11345606,2431.1,2431.0,17.771]
[1747597385683,4.01345606,2431.1,2431.0,17.771]
[1747597386634,4.01345606,2431.1,2431.0,30.37]
[1747597387247,4.11336406,2431.2,2431.0,30.37]
[1747597387582,4.11336432,2431.1,2431.0,30.37]
[1747597388290,4.11336432,2431.1,2431.0,17.771]
[1747597388582,4.11336432,2431.1,2431.0,30.367]
[1747597388792,4.11336432,2431.1,2431.0,17.771]
[1747597388949,4.11336432,2431.1,2431.0,30.367]
[1747597389916,4.11336432,2431.1,2431.0,17.771]
[1747597390060,4.11336432,2431.1,2431.0,30.367]
[1747597390392,4.11336432,2431.1,2431.0,30.366]
[1747597390967,4.11336432,2431.1,2431.0,17.771]
[1747597391567,4.11336432,2431.1,2431.0,30.366]
[1747597394472,1.0149,2431.6,2431.0,30.366]
[1747597394673,1.0149,2431.9,2431.1,1.6283]
[1747597394987,1.0149,2431.9,2431.5,1.6283]
[1747597394988,4.11203987,2431.9,2431.5,1.6283]
[1747597395187,4.11176999,2432.1,2431.6,16.70739636]
[1747597395387,1.0149,2432.9,2431.7,12.515]
[1747597395563,4.45363992,2432.8,2431.9,1.6283]
[1747597395764,4.11096422,2432.6,2432.0,17.765]
[1747597396067,4.1112333,2432.4,2432.0,17.765]
[1747597396489,4.11147809,2432.3,2432.0,17.765]
[1747597396663,0.34314995,2432.7,2432.0,17.765]
[1747597396864,4.11082792,2432.6,2432.0,17.765]
[1747597397067,0.34314995,2432.7,2432.0,17.765]
[1747597397265,4.11129472,2432.4,2432.0,17.765]
[1747597397495,4.11130099,2432.4,2432.1,12.592]
[1747597398019,4.11143706,2432.3,2432.2,12.592]
[1747597398873,4.11104327,2432.5,2432.2,12.592]
[1747597399071,4.11082792,2432.6,2432.3,12.592]
[1747597399274,4.11116592,2432.4,2432.3,12.592]
[1747597399529,4.11167303,2432.1,2432.0,17.765]
[1747597399829,4.11234938,2431.7,2431.6,12.589]
[1747597400804,12.11234938,2431.7,2431.6,12.589]
[1747597401327,4.11234938,2431.7,2431.6,12.589]
[1747597402009,4.11268764,2431.5,2431.1,17.758]
[1747597402215,4.11302595,2431.3,2431.2,12.589]
[1747597402413,4.11319512,2431.2,2431.1,17.758]
[1747597402911,4.11319512,2431.2,2431.1,30.242]
[1747597403898,4.11319512,2431.2,2431.1,17.758]
[1747597404104,4.11319512,2431.2,2431.1,30.242]
[1747597404557,13.12809512,2431.2,2431.1,17.758]
[1747597404864,4.11437975,2430.5,2430.4,17.758]
[1747597405034,4.11437975,2430.5,2430.4,30.242]
[1747597405237,1.0149,2432.5,2430.6,1.6419]
[1747597405544,4.11329561,2431.2,2430.7,0.55]
[1747597405751,1.0149,2431.8,2430.6,1.6419]
[1747597405930,4.11320109,2431.2,2430.6,1.6419]
[1747597406259,4.11234938,2431.7,2430.7,12.486]
[1747597406434,4.11322025,2431.2,2430.7,12.486]
[1747597407260,4.11330206,2431.2,2430.7,13.89879]
[1747597407755,4.1131055,2431.3,2430.8,12.486]
[1747597408057,4.11274854,2431.5,2430.8,12.486]
[1747597408256,4.11301567,2431.4,2430.8,12.486]
[1747597408634,8.0,2431.7,2430.8,12.486]
[1747597408958,9.0149,2431.8,2430.8,12.486]
[1747597409158,1.0149,2431.8,2430.8,14.72161148]
[1747597409363,4.11285778,2431.4,2430.9,0.13300467]
[1747597409665,4.11272093,2431.5,2430.9,0.13300467]
[1747597409957,1.0149,2431.8,2430.9,4.24670202]
[1747597410132,4.11247212,2431.7,2430.9,0.13300467]
[1747597410335,4.1125259,2431.6,2431.0,0.13300467]
[1747597410534,8.0,2431.9,2431.0,0.13300467]
[1747597410835,4.11290896,2431.4,2431.1,12.486]
[1747597411354,4.11262752,2431.6,2431.1,12.486]
[1747597411565,4.11269851,2431.5,2431.1,12.486]
[1747597411948,4.11243569,2431.7,2431.2,1.6419]
[1747597412155,4.11179006,2432.1,2431.4,4.11277623]
[1747597412364,4.11138751,2432.3,2431.3,17.759]
[1747597412545,4.11209555,2431.9,2431.4,0.13186585]
[1747597412752,4.11138751,2432.3,2431.5,12.485]
[1747597413058,4.1121865,2431.8,2431.5,12.485]
[1747597413364,4.11207041,2431.9,2431.5,12.485]
[1747597413662,4.11176343,2432.1,2431.6,4.11248214]
[1747597413841,1.0149,2432.4,2431.5,20.04657365]
[1747597414045,4.11179947,2432.1,2431.7,1.6419]
[1747597414345,4.11184406,2432.0,2431.7,1.6419]
[1747597414751,4.74663964,2432.6,2431.3,19.4009]
[1747597414969,4.11261648,2431.6,2431.4,12.484]
[1747597415166,4.11268764,2431.5,2431.4,12.484]
[1747597415335,4.11285679,2431.4,2431.3,17.759]
[1747597415679,4.11285679,2431.4,2431.3,30.243]
[1747597416467,4.11259588,2431.6,2431.3,30.243]
[1747597416772,1.0149,2432.1,2431.3,33.67863603]
[1747597416962,4.11133495,2432.3,2431.3,33.67863603]
[1747597417158,4.11279745,2431.5,2431.4,12.484]
[1747597417362,4.11133495,2432.3,2431.3,21.19463603]
[1747597417686,4.11285679,2431.4,2431.3,17.759]
[1747597417834,4.11277581,2431.5,2431.3,30.243]
[1747597418033,1.0149,2432.4,2431.4,1.6419]
[1747597418260,4.11245762,2431.7,2431.5,12.484]
[1747597418468,4.11168589,2432.1,2431.4,1.6419]
[1747597418675,4.11234938,2431.7,2431.6,12.484]
[1747597418974,4.11234938,2431.7,2431.3,17.759]
[1747597418975,5.12724938,2431.7,2431.3,17.759]
[1747597419188,4.11234938,2431.7,2431.6,12.484]
[1747597419338,4.11222165,2431.8,2431.6,12.484]
[1747597419869,4.11194291,2432.0,2431.6,12.484]
[1747597419870,4.11190281,2432.0,2431.6,12.484]
[1747597420039,4.1117521,2432.1,2431.6,12.484]
[1747597420240,4.11065893,2432.7,2431.7,1.41155]
[1747597420440,4.11187742,2432.0,2431.8,12.484]
[1747597420864,4.1120413,2431.9,2431.7,1.54343711]
[1747597421067,0.22428518,2432.6,2431.9,12.484]
[1747597421374,4.11165113,2432.2,2431.9,12.484]
[1747597421741,4.11177756,2432.1,2431.9,12.484]
[1747597422140,0.22428518,2432.8,2432.0,1.6315]
[1747597422345,4.11126841,2432.4,2432.1,26.30755]
[1747597422537,0.22428518,2432.8,2432.2,17.88885631]
[1747597422851,1.0149,2433.1,2432.2,17.88885631]
[1747597423033,1.0149,2433.1,2432.2,17.757]
[1747597423433,4.11102073,2432.5,2432.2,17.757]
[1747597423640,4.11116902,2432.4,2432.2,17.757]
[1747597424057,4.11090466,2432.6,2432.2,17.757]
[1747597424266,4.11109403,2432.5,2432.2,17.757]
[1747597424471,4.1105423,2432.8,2432.2,17.757]
[1747597424667,4.11060643,2432.8,2432.2,19.67979105]
[1747597424879,4.11018706,2433.0,2432.3,0.04111188]
[1747597425080,5.12440975,2433.4,2432.3,0.04110731]
[1747597425254,4.11045933,2432.9,2432.4,0.13179898]
[1747597425787,4.11022086,2433.0,2432.5,4.11098545]
[1747597426083,4.10987013,2433.2,2432.6,1.5834]
[1747597426387,4.11027599,2433.0,2432.7,12.482]
[1747597426690,4.10972707,2433.3,2432.7,24.876]
[1747597426899,4.1099245,2433.2,2432.7,24.876]
[1747597427175,4.1095594,2433.4,2432.7,24.876]
[1747597427372,4.10927155,2433.6,2432.9,4.11023123]
[1747597427574,4.10930758,2433.5,2432.9,4.11023123]
[1747597427876,4.10964418,2433.4,2432.8,6.75634858]
[1747597428591,1.0149,2434.0,2432.9,1.5834]
[1747597428744,4.10928659,2433.6,2433.1,4.10996382]
[1747597429073,4.10822399,2434.2,2433.3,1.5809]
[1747597429377,3.22602387,2434.7,2433.5,1.5809]
[1747597429597,4.10913872,2433.6,2433.5,1.5809]
[1747597430083,8.0,2434.4,2433.5,14.0599]
[1747597430395,4.10913872,2433.6,2433.5,15.46589]
[1747597430545,4.10913872,2433.6,2433.5,14.0599]
[1747597430748,4.10795711,2434.3,2433.5,14.0599]
[1747597430969,4.10812587,2434.2,2433.5,14.0599]
[1747597431164,4.10889191,2433.8,2433.6,12.479]
[1747597431511,4.10880105,2433.8,2432.6,1.5809]
[1747597431807,4.10981423,2433.2,2433.1,12.479]
[1747597432166,4.11025809,2433.0,2432.7,17.75]
[1747597432364,4.11025809,2433.0,2432.8,12.477]
[1747597432601,4.11032101,2432.9,2432.8,12.477]
[1747597434307,4.11032101,2432.9,2432.7,19.68309]
[1747597434308,4.11048997,2432.8,2432.7,17.75]
[1747597434504,4.11048997,2432.8,2432.7,30.116]
[1747597434719,4.11048997,2432.8,2432.7,17.75]
[1747597434887,4.11048997,2432.8,2431.9,0.31379553]
[1747597434888,4.11082792,2432.6,2432.5,12.366]
[1747597436719,4.11167303,2432.1,2432.0,17.748]
[1747597436890,4.11167303,2432.1,2432.0,30.114]
[1747597437369,1.0149,2432.9,2432.0,33.1254]
[1747597437575,4.11163291,2432.2,2432.0,33.1254]
[1747597437793,4.1114129,2432.3,2432.0,33.1254]
[1747597437986,4.11167303,2432.1,2432.0,20.7594]
[1747597438325,4.11368844,2431.0,2430.7,0.48717816]
[1747597438471,4.11324462,2431.2,2430.8,30.115]
[1747597438813,4.11322847,2431.2,2430.9,1.6462]
[1747597439022,4.11322847,2431.2,2431.0,3.17612]
[1747597439521,4.11240028,2431.7,2431.0,3.17612]
[1747597439522,4.11336432,2431.1,2431.0,3.17612]
[1747597439821,4.1130425,2431.3,2431.0,3.17612]
[1747597439822,4.11328298,2431.2,2431.0,3.17612]
[1747597440020,4.11336432,2431.1,2431.0,15.54312]
[1747597440945,8.0,2432.1,2431.0,15.54312]
[1747597440946,4.11270669,2431.5,2431.0,19.65653943]
[1747597441079,4.11264332,2431.6,2431.1,2.13027394]
[1747597441277,4.11270338,2431.5,2431.1,2.13027394]
[1747597441517,4.11258922,2431.6,2431.1,6.24360265]
[1747597441696,4.11193178,2432.0,2431.3,6.27199586]
[1747597442011,1.0149,2432.4,2431.4,0.62719959]
[1747597442210,4.11228145,2431.8,2431.3,6.27202425]
[1747597442509,4.11204922,2431.9,2431.4,12.333]
[1747597443047,4.11198271,2432.0,2431.4,16.44579232]
[1747597443579,4.11201219,2431.9,2431.4,16.44579232]
[1747597443781,4.11120979,2432.4,2431.3,2.159]
[1747597443782,4.11218622,2431.8,2431.5,24.697]
[1747597443996,4.11218622,2431.8,2431.6,27.1657]
[1747597444192,4.11218622,2431.8,2431.7,30.121]
[1747597444388,4.11202875,2431.9,2431.7,30.121]
[1747597444630,9.4916262,2432.7,2431.7,30.121]
[1747597444631,4.11106313,2432.5,2431.7,30.121]
[1747597444908,4.11165087,2432.2,2431.8,1.609]
[1747597445091,4.11082792,2432.6,2431.8,1.609]
[1747597445296,1.0149,2432.7,2431.8,5.19324297]
[1747597445615,4.11201118,2431.9,2431.8,1.609]
[1747597445811,4.11218027,2431.8,2431.7,17.752]
[1747597446045,4.11218027,2431.8,2431.7,30.121]
[1747597446320,4.11132255,2432.4,2431.7,30.121]
[1747597446616,4.11173222,2432.1,2431.7,30.121]
[1747597446795,4.11093697,2432.6,2431.8,3.42335072]
[1747597446990,4.11061447,2432.8,2431.9,1.65011558]
[1747597447191,5.12496354,2433.1,2431.9,1.609]
[1747597447517,4.11015207,2433.0,2432.0,12.314]
[1747597447693,4.11100192,2432.5,2432.0,16.4257434]
[1747597447899,4.11100192,2432.5,2432.1,1.80347434]
[1747597448302,4.11118245,2432.4,2432.1,1.80347434]
[1747597449028,4.11016996,2433.0,2432.2,24.679]
[1747597449334,4.11032101,2432.9,2431.9,1.609]
[1747597449502,4.11016996,2433.0,2432.3,12.37]
[1747597449503,4.11116592,2432.4,2432.3,12.37]
[1747597449887,4.11103465,2432.5,2432.3,12.37]
[1747597450115,4.11116592,2432.4,2432.3,12.37]
[1747597451818,4.11091107,2432.6,2432.3,12.37]
[1747597452023,4.10982965,2433.2,2432.4,1.6526]
[1747597452320,4.11025483,2433.0,2432.5,4.11097245]
[1747597452620,4.10964533,2433.3,2432.6,17.752]
[1747597452791,4.11046934,2432.9,2432.6,17.752]
[1747597452993,4.11046934,2432.9,2432.6,20.1035674]
[1747597453818,4.11050947,2432.8,2432.7,12.368]
[1747597454524,4.11026827,2433.0,2432.7,12.368]
[1747597454525,4.11036285,2432.9,2432.7,12.368]
[1747597455226,4.11048997,2432.8,2432.7,12.368]
[1747597455722,4.11039416,2432.9,2432.7,12.368]
[1747597455926,4.11025542,2433.0,2432.8,12.368]
[1747597456131,4.10916106,2433.6,2432.9,1.2368]
[1747597456293,4.10998314,2433.1,2433.0,1.6139]
[1747597456700,4.10990603,2433.2,2433.0,1.6139]
[1747597456899,4.10990603,2433.2,2433.0,3.13577]
[1747597457202,4.10990603,2433.2,2433.0,1.6139]
[1747597457203,4.10998314,2433.1,2433.0,1.6139]
[1747597457618,4.11048997,2432.8,2432.7,1.6139]
[1747597457840,4.11048997,2432.8,2432.7,13.9809]
[1747597458149,4.11024249,2433.0,2432.7,13.9809]
[1747597458294,4.10929668,2433.6,2432.7,13.9809]
[1747597458492,4.10994043,2433.2,2432.8,3.17329]
[1747597459117,4.11010014,2433.1,2432.8,3.17329]
[1747597459722,4.1095584,2433.4,2432.9,4.11030265]
[1747597459927,1.0149,2433.8,2432.8,7.2836874]
[1747597459928,4.10973307,2433.3,2432.8,7.2836874]
[1747597460108,4.10982393,2433.2,2432.8,3.17329]
[1747597460311,4.10966228,2433.3,2432.9,2.12647684]
[1747597460542,4.10930758,2433.5,2432.9,2.12647684]
[1747597460709,4.11015207,2433.0,2432.9,12.26]
[1747597461111,4.11006175,2433.1,2432.9,12.26]
[1747597461545,4.10896988,2433.7,2433.0,12.366]
[1747597462220,4.10998314,2433.1,2433.0,12.366]
[1747597463641,4.11065893,2432.7,2432.6,17.752]
[1747597463809,4.11053361,2432.8,2432.6,30.0]
[1747597464007,4.11053361,2432.8,2432.6,34.08772253]
[1747597464417,4.11036756,2432.9,2432.6,34.08772253]
[1747597465310,4.11007329,2433.1,2432.6,34.08772253]
[1747597465541,4.11026019,2433.0,2432.6,34.08772253]
[1747597465702,4.11039566,2432.9,2432.6,34.08772253]
[1747597466039,4.11039566,2432.9,2432.7,4.08772253]
[1747597466341,4.1104187,2432.9,2432.7,4.08772253]
[1747597466520,4.11048997,2432.8,2432.7,4.08772253]
[1747597466838,4.11023832,2433.0,2432.7,4.08772253]
[1747597467144,4.11003894,2433.1,2432.7,4.08772253]
[1747597467338,4.11032101,2432.9,2432.8,3.81754451]
[1747597467536,4.11022803,2433.0,2432.8,3.81754451]
[1747597467739,4.11005543,2433.1,2432.8,3.81754451]
[1747597467740,4.11032101,2432.9,2432.8,3.81754451]
[1747597468952,4.11022417,2433.0,2432.8,3.81754451]
[1747597469124,4.11032101,2432.9,2432.8,3.81754451]
[1747597470230,4.11022501,2433.0,2432.8,3.81754451]
[1747597470431,4.11022501,2433.0,2432.9,0.7905267]
[1747597470725,1.0149,2433.6,2432.9,0.7905267]
[1747597470726,4.1098287,2433.2,2432.9,0.7905267]
[1747597470930,4.1098287,2433.2,2433.0,1.5359]
[1747597471232,4.10989303,2433.2,2433.0,1.5359]
[1747597471951,4.10972038,2433.3,2433.0,1.5359]
[1747597472164,4.10981423,2433.2,2433.1,0.23264267]
[1747597472355,4.10981423,2433.2,2433.1,12.47964267]
[1747597472519,1.0149,2433.9,2433.1,12.47964267]
[1747597472855,4.10966003,2433.3,2433.1,24.68864267]
[1747597473218,4.10922735,2433.6,2433.1,24.68864267]
[1747597473414,4.10949647,2433.4,2433.1,24.68864267]
[1747597474630,4.10943994,2433.5,2433.1,24.68864267]
[1747597475039,4.10949092,2433.4,2433.1,24.68864267]
[1747597475256,4.10898475,2433.7,2433.1,24.68864267]
[1747597475420,4.10898475,2433.7,2433.2,6.73218861]
[1747597475624,4.10888284,2433.8,2433.3,4.24171055]
[1747597475836,4.10888284,2433.8,2433.4,12.247]
[1747597476042,4.10888284,2433.8,2433.5,17.745]
[1747597476267,1.0149,2434.2,2433.5,17.745]
[1747597476559,4.10880406,2433.8,2433.5,17.745]
[1747597477958,4.10913872,2433.6,2433.5,17.745]
[1747597478158,4.10913872,2433.6,2433.5,29.991]
[1747597483359,4.10913872,2433.6,2433.5,17.745]
[1747597483565,4.10913872,2433.6,2433.5,29.99]
[1747597485275,4.10913872,2433.6,2433.5,17.745]
[1747597485573,4.10913872,2433.6,2433.5,29.99]
[1747597485930,5.12403872,2433.6,2433.5,17.745]
[1747597486265,5.12403872,2433.6,2433.5,29.99]
[1747597486466,4.10913872,2433.6,2433.5,29.99]
[1747597486773,4.10913872,2433.6,2433.5,17.745]
[1747597486939,4.10913872,2433.6,2433.5,29.99]
[1747597487268,4.10913872,2433.6,2433.5,17.745]
[1747597487480,4.10913872,2433.6,2433.5,29.99]
[1747597488769,4.10913872,2433.6,2433.5,17.745]
[1747597488928,4.10913872,2433.6,2433.5,29.99]
[1747597492131,4.10871279,2433.9,2433.5,34.0515304]
[1747597492369,4.1088419,2433.8,2433.5,34.0515304]
[1747597492671,4.10910496,2433.7,2433.5,34.0515304]
[1747597492965,4.10910496,2433.7,2433.6,0.13234443]
[1747597493636,4.10910496,2433.7,2433.6,12.24434443]
[1747597494059,4.10910496,2433.7,2433.6,0.13234443]
[1747597494234,4.10913872,2433.6,2433.5,17.745]
[1747597494433,4.10913872,2433.6,2433.5,29.857]
[1747597495433,4.10913872,2433.6,2433.5,17.745]
[1747597495635,5.12403872,2433.6,2433.5,29.858]
[1747597497093,29.56003872,2433.6,2433.5,17.745]
[1747597497834,4.11099691,2432.5,2432.4,0.48717816]
[1747597498039,4.11099691,2432.5,2432.4,30.34217816]
[1747597498263,4.11099691,2432.5,2432.4,30.34317816]
[1747597499573,4.11099691,2432.5,2432.4,29.856]
[1747597499743,4.11085376,2432.6,2432.4,32.71770399]
[1747597499941,4.11099691,2432.5,2432.4,32.71770399]
[1747597500143,4.11099691,2432.5,2432.4,29.856]
[1747597500845,4.11099691,2432.5,2432.4,29.85315225]
[1747597501246,17.43738675,2432.5,2432.4,29.85415225]
[1747597501750,13.12589691,2432.5,2432.4,29.85415225]
[1747597501979,1.0149,2433.3,2432.4,29.85415225]
[1747597502201,4.11099691,2432.5,2432.4,17.73915225]
[1747597502484,4.11099691,2432.5,2432.4,29.85415225]
[1747597502662,4.11099691,2432.5,2432.4,17.73915225]
[1747597503056,13.12589691,2432.5,2432.4,29.85415225]
[1747597503754,4.11099691,2432.5,2432.4,29.85415225]
[1747597504543,4.11099691,2432.5,2432.4,29.85615225]
[1747597504872,13.12589691,2432.5,2432.4,29.85615225]
[1747597505684,13.12589691,2432.5,2432.4,17.73915225]
[1747597506007,13.12589691,2432.5,2432.4,29.85615225]
[1747597507135,13.12589691,2432.5,2432.4,17.73915225]
[1747597507378,13.12589691,2432.5,2432.4,29.85615225]
[1747597507740,4.11319512,2431.2,2431.1,2.10547816]